[Event "1st Festival Galdar 2024"]
[Site "?"]
[Date "2024.09.03"]
[Round "2.7"]
[White "Cuenca Jimenez, Jose Fernando"]
[Black "Moreno Diepa, Diego"]
[Result "1-0"]
[Annotator "TA"]
[ECO "D00"]
[WhiteElo "2466"]
[BlackElo "2168"]
[PlyCount "112"]
[EventDate "2024.09.02"]
[EventType "swiss"]
[SourceTitle "playchess.com"]
[Source "ChessBase"]
[SourceQuality "1"]
[TimeControl "5400+30"]

{[%evp 16,112,46,40,49,52,52,42,48,48,65,46,76,47,112,102,122,101,160,150,175,121,189,164,207,138,143,124,120,120,159,175,214,214,246,246,253,280,296,305,306,305,295,264,518,525,502,487,599,174,512,174,385,120,125,67,83,87,87,88,81,69,86,120,65,134,207,245,241,144,500,500,500,172,155,0,134,45,57,62,302,308,348,325,29983,29984,29982,29984,29985,29985,29985,29986,5547,1083,29990,29984,29941,5314,29985]} 1. e4 {[%emt 0:00:17]} c6 {[%emt 0:00:17]} 2. Nf3 {[%emt 0:00:46]} d5 {[%emt 0:00:06]} 3. exd5 {[%emt 0:00:15]} cxd5 {[%emt 0:00:07]} 4. Ne5 {[%emt 0:00:14]} a6 {[%emt 0:01:13]} 5. d4 {[%emt 0:01:53]} Nf6 {[%emt 0:01:13]} 6. Bd3 {[%emt 0:06:18]} Nc6 {[%emt 0:04:32]} 7. c3 {[%emt 0:00:52]} e6 {[%emt 0:01:14]} 8. Nd2 {[%emt 0:01:34]} Bd6 {[%emt 0:08:23]} 9. f4 {[%emt 0:00:22]} Ne7 {[%emt 0:07:55]} 10. O-O {[%emt 0:06:27]} b5 {[%emt 0:06:13]} 11. Qf3 {[%emt 0:16:59]} Bb7 {[%emt 0:10:57] White is slightly better.} 12. a3 {[%emt 0:07:33]} Qb6 {[%emt 0:02:36]} 13. g4 {[%emt 0:04:14]} Nd7 {[%emt 0:08:38]} 14. Re1 {[%emt 0:24:18]} Bxe5 {[%emt 0:10:21]} ({Black should try} 14... f6 $14 15. Nxd7 Kxd7) 15. fxe5 $16 {[%emt 0:00:08]} Nc6 {[%emt 0:00:07][%cal Be7c6,Bc6a5,Ba5c4][%mdl 32]} 16. Qf2 {[%emt 0:05:00]} a5 {[%emt 0:01:49]} ({Black should play} 16... h5) 17. Nf3 {[%emt 0:01:12]} h6 {[%emt 0:02:34] Wards off Ng5} 18. Be3 {[%emt 0:04:08]} (18. g5 $18) 18... a4 {[%emt 0:04:03]} (18... Ba6 $16 19. b4 a4) 19. Rf1 {[%emt 0:06:23][%cal Of3g5] Strongly threatening Ng5!} O-O-O {[%emt 0:01:37]} 20. Rae1 {[%emt 0:01:06]} Na5 {[%emt 0:04:08]} 21. h4 {[%emt 0:07:13]} Nc4 {[%emt 0:00:35]} 22. h5 {[%emt 0:00:38]} f6 {[%emt 0:01:33]} 23. Bf4 {[%emt 0:01:10]} Rhf8 {[%emt 0:03:35]} 24. Qh2 {[%emt 0:00:12]} fxe5 {[%emt 0:05:39]} 25. Nxe5 {[%emt 0:00:01]} Nf6 {[%emt 0:00:08]} 26. Nxc4 {[%emt 0:02:29]} dxc4 {[%emt 0:01:42] [#]} 27. Rxe6 $3 {[%emt 0:00:02][%mdl 512]} Qxe6 {[%emt 0:00:10]} 28. Bf5 {[%emt 0:00:01]} Qxf5 {[%emt 0:00:22]} 29. gxf5 {[%emt 0:00:01]} Ne4 $2 {[%emt 0:02:10]} (29... Bc6 30. Re1 Ne4) 30. Bb8 $18 {[%emt 0:01:36]} Rf7 {[%emt 0:01:15] Prevents Qc7+.} 31. Ba7 {[%emt 0:01:15] Qb8+ would kill now.} Bc6 {[%emt 0:02:10]} 32. Qb8+ {[%emt 0:00:44]} Kd7 {[%emt 0:00:03]} 33. Qf4 {[%emt 0:00:14]} (33. Qb6) 33... Ng5 $2 {[%emt 0:02:16]} (33... Re8 {was worth a try.} 34. Bb8 (34. d5 Bxd5 35. Bb6 Kc6 $18) 34... Kc8) 34. Qg4 $2 {[%emt 0:00:05]} (34. Qg3 $18) 34... Kc8 $16 {[%emt 0:00:46]} 35. Bc5 {[%emt 0:02:20]} (35. Bb6 $1 $16 {[%cal Rb6d8]} Rd5 36. Ba5) 35... Re8 {[%emt 0:00:59]} 36. Bd6 $1 {[%emt 0:00:00][%cal Od4d5] And now d5! would win.} Re4 {[%emt 0:00:53]} 37. Rf4 {[%emt 0:00:18] Hoping for Rxe4.} Re1+ {[%emt 0:02:10]} 38. Kf2 {[%emt 0:00:07][%cal Bg1f2,Bf2e2,Be2e3][%mdl 32]} Rh1 {[%emt 0:00:11]} 39. f6+ {[%emt 0:00:45]} Kb7 {[%emt 0:00:27]} 40. Ke2 {[%emt 0:00:48] fxg7 would now be deadly.} gxf6 {[%emt 0:01:04]} (40... Rh2+ $16 {might work better.} 41. Kd1 gxf6) 41. Qf5 $18 {[%emt 0:00:22] Black must now prevent Rf1.} Rxh5 {[%emt 0:00:47][%cal Og5e4]} 42. d5 {[%emt 0:00:20]} Bd7 {[%emt 0:00:06][%mdl 8192]} (42... Be8 $16 {is tougher.} 43. Rd4 Rh3) 43. Qg6 $1 {[%emt 0:01:20][%csl LRf6,LRh5]} Rh2+ {[%emt 0:01:53]} 44. Ke3 $2 {[%emt 0:00:00]} (44. Kd1) 44... Rh3+ {[%emt 0:01:11] [#]} 45. Kd4 $2 {[%emt 0:00:00]} (45. Kd2 $1 $16 Rd3+ 46. Kc1 Rxd5 47. Rd4 (47. Rxf6 Rxf6 48. Qxf6 Ne4 $16)) 45... Kb6 {[%emt 0:02:52] [#]} (45... Be8 $1 $11 {remains equal.} 46. Qg8 (46. Rxf6 Rd3+ 47. Ke5 Rd7 $11) 46... Kb6 47. Bc5+ (47. Qxe8 $2 Rd3#) 47... Ka6) 46. Bc5+ $1 $16 {[%emt 0:00:00][%mdl 1024] White has strong compensation.} (46. Rxf6 Rd3+ 47. Ke5 Re3+ 48. Kd4 Rxf6 $17) 46... Kc7 $1 {[%emt 0:00:00] aiming for ...Rd3+.} 47. Bb4 $36 {[%emt 0:00:21][%cal Og6g8][%mdl 2048] Qg8! is the strong threat. White has some pressure. Really sharp!} (47. Rxf6 Rxf6 48. Qxf6 Rh4+ 49. Ke3 Rh3+ 50. Kd4 (50. Ke2 $2 Bg4+ 51. Kf1 Rf3+ $19) 50... Rh4+ 51. Ke3 Rh3+ 52. Kd4 $11 (52. Ke2 $2 Bg4+ 53. Kf1 Rf3+ $19)) 47... Rd3+ $2 {[%emt 0:00:00]} (47... Kb7 $14 48. Ba5 (48. Rxf6 Rd3+ 49. Ke5 Re3+ 50. Kd4 Rd3+ 51. Ke5 Re3+ 52. Kd4 Rd3+ $11) (48. Kc5 $2 Be8 $19) 48... Be8) 48. Kc5 $18 {[%emt 0:00:01] Active counter play!} Be8 {[%emt 0:00:00]} 49. Qg8 {[%emt 0:01:09]} ({Don't do} 49. Qxh6 Rxd5+ 50. Kxd5 Rd7+ $18) (49. Rxf6 Rxf6 50. Qxe8 (50. Ba5+ $2 Kd7 $19) 50... Ne6+ 51. Kxb5 Rxd5+ 52. Kxa4 (52. Kxc4 Rdf5 $18) 52... Rdf5 53. Qe7+ Kc6 $18) 49... Rd7 $2 {[%emt 0:01:20]} (49... Re7 $18) 50. Ba5+ {[%emt 0:00:11]} (50. Qxe8 $2 R7xd5#) 50... Kb7 {[%emt 0:00:13]} 51. Qxe8 {[%emt 0:00:45]} R7xd5+ {[%emt 0:00:05]} 52. Kb4 {[%emt 0:00:01]} Rd2 {[%emt 0:00:07]} 53. Qe7+ {[%emt 0:01:59]} (53. Rxf6 $2 Rxb2#) 53... Rd7 {[%emt 0:00:29]} 54. Qe3 {[%emt 0:00:19]} (54. Qxf6 $142 R7d6 55. Qg7+ Ka6 56. Qg8) 54... Rxb2+ {[%emt 0:00:37]} 55. Kc5 {[%emt 0:00:01]} Rbd2 {[%emt 0:00:09]} 56. Kxb5 {[%emt 0:00:47]} (56. Rd4 $142 R2xd4 57. cxd4 h5 58. Qe8 (58. Kxb5 Rd5+ 59. Kxa4 Kc6 $18) 58... Rg7 59. Qc6+ (59. Qxh5 Re7 $18) 59... Ka7 60. Kxb5 Ne6 61. Qxe6) 56... R7d6 {[%emt 0:02:30] Weighted Error Value: White=0.38/Black=0.58.  Loses game:     	---       	Black=2      Missed win:     	White=1     	---        Mistake:       	White=5     	Black=8      Inaccurate:     	White=2     	Black=3      OK:         	White=15    	Black=9      Best:        	White=6     	Black=4      Strong:       	White=2     	Black=1      Brilliant:      	White=1     	---} 1-0

[Event "1st Festival Galdar 2024"]
[Site "?"]
[Date "2024.09.03"]
[Round "2.8"]
[White "Sucikova, Svetlana"]
[Black "Camacho Collados, Marcos"]
[Result "1/2-1/2"]
[Annotator "TA"]
[ECO "E60"]
[WhiteElo "2145"]
[BlackElo "2460"]
[PlyCount "161"]
[EventDate "2024.09.02"]
[EventType "swiss"]
[SourceTitle "playchess.com"]
[Source "ChessBase"]
[SourceQuality "1"]
[TimeControl "5400+30"]

{[%evp 77,161,-29962,-29972,-29972,-6020,-5143,-68,-56,-50,-50,-50,-50,-50,-50,-44,-62,-26,-49,-50,-53,-8,-8,-8,-8,-8,-8,-8,-1087,-1115,-969,-964,-919,-793,-668,-664,-1079,-526,-434,-599,-1536,-1272,-4631,-4627,-6279,-6536,-29974,-29975,-29975,-29976,-29976,-29977,-29977,-29978,-12798,8,-6559,-6051,-5517,-5487,-809,-108,-123,-123,-123,-123,-123,-123,-123,-123,-123,-123,-123,0,-123,-8,-8,0,-123,-123,-123,0,-123,0,-123,-123,-123]} 1. Nf3 {[%emt 0:00:32]} Nf6 {[%emt 0:00:15]} 2. g3 {[%emt 0:01:02]} g6 {[%emt 0:00:15]} 3. Bg2 {[%emt 0:00:30]} Bg7 {[%emt 0:00:08]} 4. O-O {[%emt 0:00:25]} O-O {[%emt 0:00:22]} 5. c4 {[%emt 0:03:18]} d6 {[%emt 0:00:11]} 6. d4 {[%emt 0:00:37]} Bf5 {[%emt 0:00:26]} 7. Nc3 {[%emt 0:03:47]} Ne4 {[%emt 0:00:31]} 8. Nh4 {[%emt 0:04:53]} Nxc3 {[%emt 0:00:46]} 9. bxc3 {[%emt 0:00:09]} Bc8 {[%emt 0:00:51]} 10. e4 {[%emt 0:03:13] E60: King's Indian: Unusual lines and Fianchetto Variation without Nc3.} c5 {[%emt 0:03:41]} 11. Qd3 {[%emt 0:01:10]} Nc6 {[%emt 0:17:04]} 12. Be3 {[%emt 0:02:44]} Qc7 {[%emt 0:07:31]} 13. f4 {[%emt 0:03:53]} Na5 {[%emt 0:02:03]} 14. Rac1 {[%emt 0:01:37]} b6 $146 {[%emt 0:02:05]} ({Predecessor:} 14... Be6 15. d5 Bc8 16. Nf3 b6 17. Nd2 Ba6 18. Bf3 Qd7 19. Bd1 Rad8 20. a4 Qe8 {1-0 Batsiashvili,N (2500)-Azimova,K (2054) EU-Cup (Women) 20th 2015 (6.4)}) 15. e5 {[%emt 0:07:47]} Bb7 {[%emt 0:06:32]} 16. exd6 {[%emt 0:03:32]} Qxd6 {[%emt 0:00:31]} 17. Bxb7 {[%emt 0:02:05]} Nxb7 {[%emt 0:00:03]} 18. Qe4 {[%emt 0:00:48]} Qc7 {[%emt 0:02:41]} 19. f5 {[%emt 0:01:50]} Qd7 {[%emt 0:39:59]} 20. dxc5 {[%emt 0:06:59]} Nxc5 {[%emt 0:03:50]} 21. Bxc5 {[%emt 0:01:46]} bxc5 {[%emt 0:00:02]} 22. Rcd1 {[%emt 0:00:15]} Qc7 {[%emt 0:02:35]} 23. fxg6 {[%emt 0:00:20]} hxg6 {[%emt 0:01:08]} 24. Rd3 {[%emt 0:30:03]} Rad8 {[%emt 0:01:39]} 25. Rfd1 {[%emt 0:02:03]} Rxd3 {[%emt 0:03:03]} 26. Qxd3 {[%emt 0:00:08]} e6 {[%emt 0:00:59]} 27. Nf3 {[%emt 0:00:50]} Qa5 {[%emt 0:00:48]} 28. Qc2 {[%emt 0:04:02]} Bxc3 {[%emt 0:01:34]} 29. Rd7 {[%emt 0:00:38]} Bf6 {[%emt 0:00:12]} 30. Qd2 {[%emt 0:01:30]} Qa4 {[%emt 0:01:38]} 31. Kg2 {[%emt 0:07:20]} a6 {[%emt 0:00:27]} 32. h4 {[%emt 0:01:53]} Qxc4 {[%emt 0:00:29]} 33. h5 {[%emt 0:00:22]} Rb8 {[%emt 0:00:29]} 34. Qf2 {[%emt 0:04:01]} Qe4 {[%emt 0:01:39]} 35. hxg6 {[%emt 0:00:47]} fxg6 {[%emt 0:00:42]} 36. Kh3 {[%emt 0:00:58]} Qf5+ {[%emt 0:00:29]} 37. g4 {[%emt 0:00:07]} Qf4 {[%emt 0:00:17]} 38. Qe2 {[%emt 0:00:40]} e5 {[%emt 0:00:40]} 39. Qd3 {[%emt 0:00:10]} e4 $1 {[%emt 0:00:41]} 40. Qd5+ {[%emt 0:00:33]} Kh8 {[%emt 0:00:01]} 41. Nd2 {[%emt 0:00:58]} Qe3+ $2 {[%emt 0:00:59]} (41... Be5 $19 {[%csl Ge5][%cal Rf4h2]} 42. Rd8+ Kh7 (42... Rxd8 43. Qxd8+ Kh7 44. Qe7+ Bg7 45. Nxe4 $11) 43. Qg8+ Kh6 44. Qf8+ Qxf8 45. Rxf8 Rxf8 46. Nxe4 Rf4 (46... Rf3+ $2 47. Kg2 $19) 47. g5+ Kh5 48. Ng3+ Kxg5 49. Kg2 Rg4 50. Kf3 Rxg3+ (50... Bxg3 51. Ke3 Rd4 52. Kf3 Bf4 53. a4 c4 54. Ke2 c3 55. Kf3 c2 56. Kg2 c1=Q 57. a5 Rd2+ 58. Kh3 Rh2#) 51. Ke4 c4 52. Kxe5 c3 53. Ke6 c2 54. a4 c1=Q (54... c1=B 55. a5 Rd3 56. Ke5 Rd8 57. Ke6 Bb2 58. Kf7 Kf5 59. Ke7 Rd3 60. Kf7 Bf6 61. Kg8 Ke6 62. Kh7 Kf7 63. Kh6 Rh3#) 55. Kf7 Rd3 56. Ke7 Qc7+ 57. Ke6 Qd7+ 58. Ke5 Qf5#) 42. Kg2 $15 {[%emt 0:00:11]} Qe2+ {[%emt 0:00:10]} 43. Kh3 $1 {[%emt 0:00:52]} Qd3+ {[%emt 0:00:57]} 44. Qxd3 {[%emt 0:00:17]} exd3 {[%emt 0:00:01]} 45. Rxd3 {[%emt 0:00:08]} Rb2 {[%emt 0:00:18]} 46. Ne4 {[%emt 0:01:10]} Be5 {[%emt 0:00:11]} (46... Bd4 $5 47. Ra3 c4 48. Rxa6 Re2 $15) 47. g5 {[%emt 0:00:04]} Bd4 {[%emt 0:01:05]} 48. Ra3 {[%emt 0:00:26]} Re2 {[%emt 0:00:15]} 49. Nd6 {[%emt 0:01:03]} Re3+ {[%emt 0:00:06]} 50. Rxe3 {[%emt 0:00:04]} Bxe3 {[%emt 0:00:02]} 51. Kg4 {[%emt 0:00:20]} Kg7 {[%emt 0:00:09]} 52. Ne8+ $2 {[%emt 0:00:19][%mdl 8192]} (52. a4 $11) 52... Kf7 $19 {[%emt 0:00:21]} 53. Nc7 {[%emt 0:00:04]} a5 {[%emt 0:00:31]} 54. Nd5 {[%emt 0:00:03]} Bd2 {[%emt 0:00:15]} 55. Nb6 {[%emt 0:01:30]} Ke6 {[%emt 0:00:07]} 56. Nc4 {[%emt 0:00:05]} Bc3 {[%emt 0:00:35]} (56... Bb4 $142 {Threatens to win with ...Kd5.} 57. Kf3 Kd5 58. Nb6+ Kd4) 57. Kf3 {[%emt 0:00:16]} Kd5 {[%emt 0:01:07]} 58. Nb6+ {[%emt 0:00:11]} Kd4 {[%emt 0:00:07]} 59. Nd7 {[%emt 0:00:11]} c4 {[%emt 0:01:22]} 60. Nf8 {[%emt 0:01:09]} Bb2 {[%emt 0:00:22]} 61. Nxg6 {[%emt 0:00:26]} c3 {[%emt 0:00:43]} 62. Nf4 {[%emt 0:00:17]} c2 {[%emt 0:00:06]} 63. g6 {[%emt 0:01:25]} Kc4 {[%emt 0:00:07]} (63... c1=R 64. Ne2+ Ke5 65. Nxc1 $11) 64. Ne2 {[%emt 0:00:23]} Kd3 {[%emt 0:00:02]} (64... c1=B 65. Nxc1 Bg7 66. Ke3 $11) 65. Nc1+ {[%emt 0:01:14] [#]} Kc4 $2 {[%emt 0:03:06] [#]} (65... Kd2 $1 $19 {[%cal Rd2c1]} 66. Ne2 c1=Q (66... c1=B $2 67. Nf4 $19) 67. Nxc1 Kxc1 68. a4 Kc2 69. Ke4 Kb3 70. Kd5 Kb4 (70... Kxa4 71. Kc4 Bh8 72. Kd5 Kb3 73. Ke6 a4 74. Kf7 a3 75. Kg8 Be5 76. Kf8 a2 77. g7 Bxg7+ 78. Kxg7 a1=Q+ 79. Kg6 Qe5 80. Kf7 Kc4 81. Kg6 Kd5 82. Kf7 Qg5 83. Ke8 Ke6 84. Kf8 Qg4 85. Ke8 Qg8#) 71. Kd6 Kxa4 72. Ke7 Kb3 73. Kf8 a4 74. g7 Bxg7+ 75. Kxg7 Kc4 76. Kh6 a3 77. Kh7 Kd5 78. Kh6 a2 79. Kg5 Ke4 (79... a1=B 80. Kh6 $11) 80. Kg6 a1=Q (80... a1=B 81. Kh7 $11) 81. Kf7 Kf5 82. Ke7 Qd1 83. Kf8 Kf6 84. Ke8 Qd5 85. Kf8 Qf7#) 66. Ke4 $2 {[%emt 0:00:24][%mdl 8192]} (66. Ke2 $1 $11) 66... Bg7 $19 {[%emt 0:00:14]} (66... Bxc1 67. g7 Bh6 68. g8=Q+ (68. g8=R $2 {is the wrong capture.} c1=Q $19) 68... Kc5 69. Qc8+ (69. Qd5+ Kb6 70. Qd6+ Kb5 71. Qxh6 Kc5 72. Qh2 Kc6 73. Qxc2+ Kd6) 69... Kd6 70. Qa6+ (70. Qxc2 Bg7 71. Qd3+ Ke7 72. Kf5 a4 73. Qd5 Bc3 74. Qe6+ Kd8) 70... Kc5 71. Qxh6) 67. a4 {[%emt 0:00:26]} Kc3 {[%emt 0:00:14]} 68. Kd5 {[%emt 0:00:34]} Kb2 $2 {[%emt 0:00:47]} (68... Bh6 $19 69. Ne2+ Kd3 70. Nc1+ Bxc1) 69. Nd3+ {[%emt 0:00:40]} Kb3 {[%emt 0:00:11]} 70. Nc1+ {[%emt 0:00:21]} Kxa4 {[%emt 0:00:08]} 71. Kc4 {[%emt 0:00:15]} Ka3 {[%emt 0:00:05]} 72. Nd3 {[%emt 0:00:45]} a4 {[%emt 0:00:46]} 73. Nc1 {[%emt 0:00:06]} Bf6 {[%emt 0:01:13]} 74. Nd3 {[%emt 0:00:45]} Bg7 {[%emt 0:00:36]} 75. Nc1 {[%emt 0:00:04]} Bh6 {[%emt 0:00:51]} ({Better is} 75... Be5 $17) 76. Nd3 $11 {[%emt 0:00:06]} Bg7 {[%emt 0:01:04]} (76... Ka2 $11) 77. Nc1 $17 {[%emt 0:02:11]} Bh8 78. Nd3 Bg7 79. Nc1 {[%emt 0:01:00]} Bh8 {[%emt 0:01:30]} 80. Nd3 $1 {[%emt 0:00:30]} Bf6 {[%emt 0:00:30]} 81. Nc1 {[%emt 0:00:30]} 1/2-1/2

[Event "1st Festival Galdar 2024"]
[Site "?"]
[Date "2024.09.03"]
[Round "2.9"]
[White "Lopez Martinez, Josep Manuel"]
[Black "Hernandez Leon, Sergio"]
[Result "1-0"]
[Annotator "TA"]
[ECO "A21"]
[WhiteElo "2448"]
[BlackElo "2136"]
[PlyCount "67"]
[EventDate "2024.09.02"]
[EventType "swiss"]
[SourceTitle "playchess.com"]
[Source "ChessBase"]
[SourceQuality "1"]
[TimeControl "5400+30"]

{[%evp 9,67,-33,-26,-31,-49,-81,-22,-20,-17,-62,-63,-55,-62,-51,-15,-16,-21,-31,8,0,13,-10,-2,-7,16,17,22,29,33,29,52,31,53,22,64,59,176,177,181,175,278,274,276,272,264,258,337,216,221,158,192,203,187,179,192,204,253,251,388,387]} 1. c4 {[%emt 0:08:02]} e5 {[%emt 0:00:10]} 2. e3 {[%emt 0:00:35]} Nf6 {[%emt 0:00:33]} 3. Nc3 {[%emt 0:00:27]} Bb4 {[%emt 0:01:32]} 4. Qc2 {[%emt 0:00:36]} O-O {[%emt 0:01:22]} 5. Nf3 {[%emt 0:01:17]} Re8 {[%emt 0:03:10]} 6. a3 {[%emt 0:03:42]} Bxc3 {[%emt 0:03:34]} 7. bxc3 {[%emt 0:01:03]} Nc6 {[%emt 0:00:18]} (7... e4 $17 8. Nd4 c5) 8. e4 $11 {[%emt 0:00:33] The position is equal.} d6 {[%emt 0:00:37]} 9. h3 {[%emt 0:03:55]} Nd7 {[%emt 0:06:38]} 10. Be2 {[%emt 0:04:33]} Nc5 {[%emt 0:02:40][%cal Of7f5]} 11. O-O {[%emt 0:01:00]} Qf6 {[%emt 0:05:52]} (11... f5 $5 12. exf5 e4 $15) 12. d3 {[%emt 0:01:15]} Ne6 {[%emt 0:03:23]} 13. g3 {[%emt 0:00:25]} h6 {[%emt 0:02:10]} 14. Kh2 {[%emt 0:00:57]} Ne7 {[%emt 0:09:37]} 15. Ng1 {[%emt 0:03:24]} g5 {[%emt 0:01:49]} 16. Bd2 {[%emt 0:04:26]} Qg7 {[%emt 0:10:26]} 17. Bg4 {[%emt 0:04:05]} Rf8 {[%emt 0:04:39]} 18. Ne2 {[%emt 0:00:23]} Bd7 {[%emt 0:01:42]} 19. f4 {[%emt 0:01:37]} f6 {[%emt 0:00:07]} 20. d4 {[%emt 0:02:36][%cal Oc4c5]} h5 {[%emt 0:03:22]} 21. Bxh5 {[%emt 0:06:18] aiming for f5.} Qh7 {[%emt 0:08:04]} 22. Bf3 {[%emt 0:00:28]} (22. Bg4 $2 Nxd4 23. cxd4 Bxg4 $17) 22... g4 {[%emt 0:10:59] [#]} 23. Bg2 $1 $18 {[%emt 0:00:54]} (23. Bxg4 Nxd4 24. cxd4 Bxg4) 23... gxh3 {[%emt 0:01:04]} 24. Bf3 {[%emt 0:00:22]} Rf7 {[%emt 0:03:27]} (24... Rad8 $142 25. Rab1 b6) 25. f5 {[%emt 0:05:34]} Ng5 {[%emt 0:08:34]} 26. Bxg5 {[%emt 0:01:09]} fxg5 {[%emt 0:00:02]} 27. Qd2 {[%emt 0:00:33]} Qg7 {[%emt 0:08:09]} 28. Bg4 {[%emt 0:44:21] Black must now prevent f6.} (28. Kxh3 Nc6 $16) 28... Nc6 {[%emt 0:00:00]} 29. Rad1 {[%emt 0:00:00]} (29. Bxh3 Re8 $14) 29... Qh6 {[%emt 0:00:07]} 30. Ng1 {[%emt 0:00:00]} (30. Bxh3 $2 Rh7 31. Ng1 g4 $17) 30... Re8 {[%emt 0:00:04]} 31. Rde1 {[%emt 0:00:00]} (31. Nxh3 $6 exd4 32. Qxg5+ Qxg5 33. Nxg5 Rg7 $14) 31... Qf6 {[%emt 0:00:20]} 32. Nf3 {[%emt 0:00:00] Strongly threatening Bh5.} (32. Nxh3 exd4 33. cxd4 (33. Qxg5+ Qxg5 34. Nxg5 Rg7 $14) (33. Nxg5 $2 Rg7 $19) 33... Rh7 $16) 32... Rg7 {[%emt 0:00:03]} 33. Kxh3 {[%emt 0:00:00]} ({Worse is} 33. Bxh3 g4 34. dxe5 Nxe5 35. Nxe5 Qxe5 $11) ({Don't do} 33. c5 dxc5 34. dxc5 Na5 35. Kxh3 (35. Bxh3 Bb5 $16) 35... Bb5 $18) 33... Na5 {[%emt 0:00:11]} (33... Rh7+ {was called for.} 34. Kg2 Ree7 35. Qxg5+ (35. Nxg5 Rhg7 $17) 35... Qxg5 36. Nxg5 Rhg7) 34. dxe5 {[%emt 0:00:00] Weighted Error Value: White=0.14 (very precise) /Black=0.33.  Mistake:       	---       	Black=4      Inaccurate:     	White=4     	Black=4      OK:         	White=16    	Black=7      Best:        	---       	Black=1      Strong:       	White=1     	---} 1-0

[Event "1st Festival Galdar 2024"]
[Site "?"]
[Date "2024.09.03"]
[Round "2.10"]
[White "Marrero Cardenes, Agustin"]
[Black "Movsziszian, Karen"]
[Result "0-1"]
[Annotator "TA"]
[ECO "A49"]
[WhiteElo "2111"]
[BlackElo "2444"]
[PlyCount "102"]
[EventDate "2024.09.02"]
[EventType "swiss"]
[SourceTitle "playchess.com"]
[Source "ChessBase"]
[SourceQuality "1"]
[TimeControl "5400+30"]

{[%evp 12,102,31,23,41,0,38,0,6,-40,-42,-27,-19,-24,-21,-26,8,-24,8,0,20,10,9,8,15,27,39,31,68,49,149,39,57,0,0,0,46,-45,-28,-68,-50,-47,-31,-45,0,-7,6,-51,-45,-47,-50,-45,-49,-44,-31,-46,-22,-31,-20,-38,-50,-57,-52,-68,-67,-70,-62,-121,-111,-151,-164,-222,-158,-167,-157,-164,-159,-154,-163,-168,-163,-321,-305,-420,-401,-398,-359,-785,-1634,-1980,-1762,-1684,-1601]} 1. d4 {[%emt 0:00:03]} d6 {[%emt 0:00:07]} 2. Nf3 {[%emt 0:00:06]} Nf6 {[%emt 0:00:10]} 3. g3 {[%emt 0:00:18]} g6 {[%emt 0:00:05]} 4. Bg2 {[%emt 0:00:05]} Bg7 {[%emt 0:00:05]} 5. O-O {[%emt 0:00:19]} O-O {[%emt 0:00:03]} 6. b3 {[%emt 0:00:14][%cal Bb2b3,Bb3b4][%mdl 32]} a5 {[%emt 0:13:29][%cal Ba7a5,Ba5a4][%mdl 32]} 7. Bb2 {[%emt 0:01:12]} a4 {[%emt 0:00:23]} 8. b4 {[%emt 0:00:09]} b5 {[%emt 0:04:19]} 9. Nfd2 {[%emt 0:13:12]} d5 {[%emt 0:05:13] The position is equal.} 10. a3 {[%emt 0:08:32]} (10. Na3 $11) 10... c6 $15 {[%emt 0:04:52]} 11. e4 {[%emt 0:06:54]} dxe4 {[%emt 0:00:08]} 12. Nxe4 {[%emt 0:00:08]} Nxe4 {[%emt 0:00:05]} 13. Bxe4 {[%emt 0:00:07][%cal Oc2c4]} Qb6 {[%emt 0:00:39]} 14. c3 {[%emt 0:06:37]} Nd7 {[%emt 0:04:25]} 15. Nd2 {[%emt 0:07:17]} e5 {[%emt 0:00:50]} 16. Bg2 {[%emt 0:10:22]} exd4 {[%emt 0:08:20]} 17. cxd4 {[%emt 0:00:08]} Nf6 {[%emt 0:00:02]} 18. Rc1 {[%emt 0:03:41]} Bd7 {[%emt 0:00:07]} 19. Nf3 {[%emt 0:02:18]} Rfc8 {[%emt 0:07:37]} 20. Ne5 {[%emt 0:01:52] And now Rc5 would win.} Rc7 {[%emt 0:05:51]} (20... Qb7 $1 $14) 21. Qd2 {[%emt 0:01:27]} (21. Rc5 $16) 21... Rac8 $1 $14 {[%emt 0:02:50]} 22. Rc2 {[%emt 0:05:34]} (22. Rc5 $14) 22... Bf5 $11 {[%emt 0:01:54]} 23. Rcc1 {[%emt 0:00:54]} Be4 {[%emt 0:03:49]} (23... Bd7 $11) 24. f3 {[%emt 0:05:42]} (24. Bxe4 $1 $14 Nxe4 25. Qf4) 24... Bd5 $15 {[%emt 0:00:13]} 25. Rce1 {[%emt 0:03:40]} Rd8 {[%emt 0:00:58]} 26. f4 {[%emt 0:01:17]} Bxg2 {[%emt 0:01:05]} 27. Qxg2 {[%emt 0:02:15]} Nd7 {[%emt 0:00:53][%cal Bf6d7,Bd7f8,Bf8e6,Be6d8,Bd8b7,Bb7d6,Bd6c4][%mdl 32]} 28. Nf3 {[%emt 0:01:18]} Nf8 {[%emt 0:05:35]} 29. Ne5 {[%emt 0:04:51]} ({White should play} 29. f5 $1 $11) 29... Ne6 {[%emt 0:03:10]} 30. Qf2 {[%emt 0:01:59]} Rd5 {[%emt 0:05:19]} ({Weaker is} 30... Nxd4 31. Rd1 Rcd7 32. Nxd7 Rxd7 33. Kh1 $18) 31. Rd1 {[%emt 0:04:03]} Qa7 {[%emt 0:04:26]} 32. Rd2 {[%emt 0:00:52]} f6 {[%emt 0:01:58]} 33. Nf3 {[%emt 0:00:35]} Nd8 {[%emt 0:00:26]} 34. Re1 {[%emt 0:00:39][%cal Of4f5]} Re7 {[%emt 0:00:36]} 35. Rxe7 {[%emt 0:00:14]} Qxe7 {[%emt 0:00:06]} 36. Re2 {[%emt 0:00:07]} Qd7 {[%emt 0:00:18]} 37. Qe3 {[%emt 0:00:11]} Kf7 {[%emt 0:00:24] Wards off Qe7+} 38. Kg2 {[%emt 0:03:02]} Nb7 {[%emt 0:00:12]} 39. Rc2 {[%emt 0:01:17]} ({White should try} 39. Qf2 $15) 39... Nd6 $17 {[%emt 0:00:22]} 40. Rc5 {[%emt 0:00:10]} Nc4 $36 {[%emt 0:00:39][%mdl 2048] White is under strong pressure.} 41. Qc3 {[%emt 0:00:25]} (41. Qe2 $142) 41... Bf8 {[%emt 0:04:51]} 42. Rxd5 {[%emt 0:00:28]} Qxd5 {[%emt 0:00:01]} 43. Bc1 {[%emt 0:01:20]} Bd6 {[%emt 0:00:16]} 44. Kf2 {[%emt 0:01:06]} Bc7 {[%emt 0:00:28] Black has more active pieces.} 45. Be3 {[%emt 0:03:30]} Bb6 {[%emt 0:00:07]} 46. Bc1 $2 {[%emt 0:00:55] [#]} (46. Nd2) 46... Qe4 $19 {[%emt 0:00:33]} 47. Bb2 {[%emt 0:00:35] White is weak on the light squares} Ke6 {[%emt 0:01:40]} 48. Bc1 {[%emt 0:01:51]} Kd5 {[%emt 0:00:14]} 49. Be3 {[%emt 0:00:31]} (49. Kf1) 49... Nxe3 {[%emt 0:01:03] Black is clearly winning.} 50. Qxe3 {[%emt 0:00:06]} Bxd4 {[%emt 0:00:11]} 51. Nxd4 {[%emt 0:00:07]} Qxd4 {[%emt 0:00:02] Weighted Error Value: White=0.49/Black=0.13 (very precise) .  Mistake:       	White=9     	Black=2      Inaccurate:     	White=6     	Black=5      OK:         	White=14    	Black=12     Best:        	---       	Black=4      Strong:       	---       	Black=1} 0-1